bitfinex-derivatives/quotes_ETHF0:USTF0_20210107
["timestamp","ask_amount","ask_price","bid_price","bid_amount"]
[1609997783247,2.0783,1213.2,1201.9,431.183]
[1609997785148,4.00959,1210.5,1201.9,431.183]
[1609997785348,4.00959,1210.5,1201.9,66.023]
[1609997785847,2.5211,1211.9,1201.9,66.023]
[1609997786048,2.5211,1211.9,1201.9,68.2233]
[1609997786550,2.0783,1213.2,1201.9,68.2233]
[1609997786848,3.674,1213.5,1201.9,433.3833]
[1609997787049,4.00959,1211.1,1210.9,4.00959]
[1609997787751,4.00959,1211.1,1201.9,433.3833]
[1609997789155,2.5175,1213.0,1211.0,4.00959]
[1609997790355,2.5175,1213.0,1201.9,433.3833]
[1609997791056,4.00959,1210.8,1210.7,4.00959]
[1609997791256,4.00959,1210.8,1201.9,433.3833]
[1609997793058,4.00959,1210.8,1210.6,4.00959]
[1609997795066,4.00959,1211.0,1210.6,4.00959]
[1609997795569,55.5427,1211.8,1210.6,4.00959]
[1609997797172,55.5427,1211.8,1211.5,4.00959]
[1609997799274,55.5427,1211.8,1204.0,30.0]
[1609997799473,4.00959,1212.0,1204.0,66.023]
[1609997801075,4.00959,1211.7,1211.6,4.00959]
[1609997804181,3.1987,1213.6,1211.6,4.00959]
[1609997804784,3.674,1213.8,1211.6,4.00959]
[1609997805079,4.00959,1211.9,1211.6,4.00959]
[1609997805778,4.00959,1211.9,1204.0,66.023]
[1609997807196,4.00959,1210.9,1210.7,4.00959]
[1609997808882,4.00959,1210.9,1204.0,66.023]
[1609997809087,4.00959,1210.5,1210.4,4.00959]
[1609997810286,2.0899,1212.9,1210.4,4.00959]
[1609997811085,2.0899,1212.9,1210.6,4.00959]
[1609997811590,2.0899,1212.9,1204.0,66.023]
[1609997813190,4.00959,1210.6,1210.5,4.00959]
[1609997815494,4.00959,1210.6,1204.0,66.023]
[1609997817196,2.6363,1212.3,1209.9,4.00959]
[1609997817397,2.6363,1212.3,1204.0,66.023]
[1609997819197,2.6363,1212.3,1209.8,4.00959]
[1609997819497,2.6363,1212.3,1204.0,66.023]
[1609997821200,4.00959,1209.5,1209.1,4.00959]
[1609997823202,4.00959,1209.5,1209.4,4.00959]
[1609997823400,4.00959,1209.5,1204.0,66.023]
[1609997824303,2.8285,1211.7,1204.0,66.023]
[1609997825205,4.00959,1210.1,1209.9,4.00959]
[1609997825506,4.00959,1210.1,1204.0,66.023]
[1609997827207,4.00959,1210.1,1209.8,4.00959]
[1609997827609,4.00959,1210.1,1204.0,66.023]
[1609997828109,2.4173,1212.0,1204.0,66.023]
[1609997829211,4.00959,1210.8,1210.5,4.00959]
[1609997830916,4.00959,1210.8,1204.0,66.023]
[1609997831214,2.1032,1212.6,1210.3,4.00959]
[1609997831415,5.7639,1212.9,1210.3,4.00959]
[1609997831715,56.262,1211.7,1210.3,4.00959]
[1609997832218,56.262,1211.7,1204.0,66.023]
[1609997833218,4.00959,1210.3,1210.2,4.00959]
[1609997835623,56.262,1211.7,1210.2,4.00959]
[1609997837328,56.262,1211.7,1210.8,4.00959]
[1609997838025,56.262,1211.7,1204.0,66.023]
[1609997839326,56.262,1211.7,1210.1,4.00959]
[1609997839627,56.262,1211.7,1204.0,66.023]
[1609997841028,8.0379,1211.6,1204.0,66.023]
[1609997841428,4.00959,1209.9,1209.7,4.00959]
[1609997851749,2.0269,1212.0,1209.7,4.00959]
[1609997851950,2.1521,1212.3,1209.7,4.00959]
[1609997852251,43.1409,1212.9,1209.7,4.00959]
[1609997853451,13.1409,1212.9,1209.9,4.00959]
[1609997855054,13.1409,1212.9,1204.0,66.023]
[1609997855652,4.00959,1209.7,1209.5,4.00959]
[1609997859456,4.00959,1209.7,1209.3,4.00959]
[1609997860357,4.00959,1209.7,1204.0,66.023]
[1609997861460,4.00959,1209.0,1208.9,4.00959]
[1609997862867,4.00959,1209.0,1204.0,66.023]
[1609997863467,4.00959,1209.0,1208.9,4.00959]
[1609997865865,4.00959,1209.0,1204.0,66.023]
[1609997867668,4.00959,1208.8,1208.7,4.00959]
[1609997867867,60.8927,1210.4,1208.7,4.00959]
[1609997869170,49.2563,1209.9,1208.7,4.00959]
[1609997869369,2.8202,1211.2,1208.7,4.00959]
[1609997869569,4.00959,1208.8,1208.7,4.00959]
[1609997871370,4.00959,1208.8,1204.0,66.023]
[1609997871570,4.00959,1208.3,1208.0,4.00959]
[1609997873569,4.00959,1208.3,1208.2,4.00959]
[1609997873870,2.5222,1210.4,1208.2,4.00959]
[1609997874670,3.1465,1210.8,1208.2,4.00959]
[1609997875672,4.00959,1208.3,1208.0,4.00959]
[1609997877573,2.4274,1210.5,1208.0,4.00959]
[1609997878573,59.8841,1210.0,1208.0,4.00959]
[1609997879778,59.8841,1210.0,1208.2,4.00959]
[1609997879980,59.8841,1210.0,1204.0,66.023]
[1609997881581,4.00959,1208.2,1208.1,4.00959]
[1609997883082,59.8841,1210.0,1208.1,4.00959]
[1609997883583,59.8841,1210.0,1207.9,4.00959]
[1609997883783,4.00959,1208.2,1207.9,4.00959]
[1609997889690,4.00959,1208.2,1208.1,4.00959]
[1609997891803,65.199,1209.0,1208.1,4.00959]
[1609997893694,4.00959,1208.9,1208.7,4.00959]
[1609997894096,4.00959,1208.9,1204.0,66.023]
[1609997894795,65.199,1209.0,1204.0,66.023]
[1609997895696,69.20859,1209.0,1208.9,4.00959]
[1609997897396,4.00959,1209.0,1208.9,4.00959]
[1609997902803,4.00959,1209.0,1204.0,66.023]
[1609997904002,4.00959,1209.0,1208.9,4.00959]
[1609997906003,4.00959,1209.0,1208.7,4.00959]
[1609997911613,4.00959,1209.0,1204.0,66.023]
[1609997911915,4.00959,1208.8,1208.5,4.00959]
[1609997912515,10.2019,1211.5,1208.5,4.00959]
[1609997913215,2.8249,1211.5,1208.5,4.00959]
[1609997913920,4.00959,1209.0,1208.8,4.00959]
[1609997914318,4.00959,1209.0,1204.0,66.023]
[1609997915920,4.00959,1208.8,1208.5,4.00959]
[1609997917920,4.00959,1208.8,1208.7,4.00959]
[1609997918219,3.0685,1211.1,1208.7,4.00959]
[1609997918920,2.8249,1211.5,1208.7,4.00959]
[1609997919521,62.3606,1209.6,1208.7,4.00959]
[1609997919921,4.00959,1209.1,1208.7,4.00959]
[1609997924022,4.00959,1208.9,1208.7,4.00959]
[1609997924221,62.3606,1209.6,1208.7,4.00959]
[1609997925325,62.3606,1209.6,1204.0,66.023]
[1609997925524,52.0322,1209.8,1204.0,66.023]
[1609997926025,4.00959,1208.8,1208.5,4.00959]
[1609997928029,4.00959,1208.6,1208.5,4.00959]
[1609997931332,52.0322,1209.8,1208.5,4.00959]
[1609997932033,4.00959,1208.7,1208.5,4.00959]
[1609997934434,4.00959,1208.7,1204.0,66.023]
[1609997935336,4.00959,1208.7,1204.0,30.0]
[1609997936037,4.00959,1207.9,1207.8,4.00959]
[1609997936237,3.0572,1210.3,1207.8,4.00959]
[1609997937538,2.6507,1210.6,1207.8,4.00959]
[1609997938039,4.00959,1208.3,1208.0,4.00959]
[1609997938540,2.6507,1210.6,1208.0,4.00959]
[1609997939039,2.2526,1210.9,1208.0,4.00959]
[1609997939540,30.0,1211.4,1208.0,4.00959]
[1609997940140,7.377,1211.5,1208.3,4.00959]
[1609997942046,7.377,1211.5,1208.7,4.00959]
[1609997942846,7.377,1211.5,1204.0,30.0]
[1609997943047,37.377,1211.5,1204.0,66.023]
[1609997943245,6.5149,1211.3,1204.0,66.023]
[1609997944046,4.00959,1208.6,1208.4,4.00959]
[1609997947449,4.00959,1208.6,1204.0,66.023]
[1609997948248,4.00959,1208.1,1207.8,4.00959]
[1609997948549,65.2977,1209.6,1207.8,4.00959]
[1609997949551,3.1644,1210.5,1207.8,4.00959]
[1609997950051,4.00959,1208.6,1208.3,4.00959]
[1609997952152,4.00959,1208.6,1208.5,4.00959]
[1609997953556,4.00959,1208.6,1204.0,66.023]
[1609997954154,4.00959,1208.6,1208.5,4.00959]
[1609997954354,4.00959,1208.6,1204.0,66.023]
[1609997956258,65.8043,1210.2,1204.0,66.023]
[1609997958161,4.00959,1208.2,1207.9,4.00959]
[1609997960161,4.00959,1208.0,1207.9,4.00959]
[1609997960762,4.00959,1208.0,1204.0,66.023]
[1609997961861,4.00959,1208.0,1204.0,30.0]
[1609997962162,4.00959,1208.0,1207.7,4.00959]
[1609997970272,4.00959,1208.0,1207.9,4.00959]
[1609997971672,6.8384,1210.5,1207.9,4.00959]
[1609997972371,6.8384,1210.5,1208.2,4.00959]
[1609997972572,48.7996,1210.1,1208.2,4.00959]
[1609997974276,48.7996,1210.1,1208.5,4.00959]
[1609997974679,48.7996,1210.1,1204.0,30.0]
[1609997976278,4.00959,1208.3,1208.2,4.00959]
[1609997976679,4.00959,1208.3,1204.0,30.0]
[1609997978284,4.00959,1208.3,1208.2,4.00959]
[1609997986599,4.00959,1208.3,1204.0,30.0]
[1609997988404,4.00959,1208.3,1208.1,4.00959]
[1609997990404,4.00959,1208.6,1208.1,4.00959]
[1609997992409,4.00959,1208.4,1208.1,4.00959]
[1609997994413,4.00959,1208.2,1208.1,4.00959]
[1609997996115,6.8384,1210.5,1204.0,30.0]
[1609997996313,6.8384,1210.5,1204.0,66.023]
[1609997996514,4.00959,1208.4,1208.2,4.00959]
[1609997996713,4.00959,1208.4,1204.0,66.023]
[1609997998518,4.00959,1208.1,1207.8,4.00959]
[1609997998819,3.9861457,1208.1,1207.8,4.00959]
[1609997999018,3.9861457,1208.1,1204.0,30.0]
[1609998000521,6.8384,1210.5,1207.6,4.00959]
[1609998000721,55.1219,1209.6,1207.6,4.00959]
[1609998002524,4.00959,1207.7,1207.6,4.00959]
[1609998005926,55.1219,1209.6,1207.6,4.00959]
[1609998006628,4.00959,1208.2,1208.0,4.00959]
[1609998007028,55.1219,1209.6,1208.0,4.00959]
[1609998008629,4.00959,1209.0,1208.8,4.00959]
[1609998009130,4.00959,1209.0,1204.0,30.0]
[1609998009429,4.00959,1209.0,1204.0,66.023]
[1609998010534,4.00959,1208.7,1208.6,4.00959]
[1609998012135,4.00959,1208.7,1204.0,66.023]
[1609998012536,55.3225,1209.8,1208.4,4.00959]
[1609998014539,4.00959,1208.9,1208.6,4.00959]
[1609998016040,4.00959,1208.9,1204.0,66.023]
[1609998016640,4.00959,1208.6,1208.5,4.00959]
[1609998017244,55.3225,1209.8,1208.5,4.00959]
[1609998018545,4.00959,1208.8,1208.5,4.00959]
[1609998020647,4.00959,1208.8,1208.7,4.00959]
[1609998023356,4.00959,1208.8,1204.0,66.023]
[1609998024559,4.00959,1208.8,1208.7,4.00959]
[1609998025059,52.4662,1209.9,1208.7,4.00959]
[1609998026661,4.00959,1209.1,1208.9,4.00959]
[1609998034674,4.00959,1209.3,1208.9,4.00959]
[1609998038677,4.00959,1209.3,1209.2,4.00959]
[1609998039378,4.00959,1209.3,1204.0,66.023]
[1609998040680,6.5149,1211.3,1208.9,4.00959]
[1609998042481,6.5149,1211.3,1204.0,66.023]
[1609998042682,13.8919,1211.3,1204.0,66.023]
[1609998042883,4.00959,1208.8,1208.5,4.00959]
[1609998044885,4.00959,1208.6,1208.5,4.00959]
[1609998045186,13.8919,1211.3,1204.0,66.023]
[1609998047690,62.4233,1209.5,1204.0,66.023]
[1609998048791,4.00959,1208.5,1208.4,4.00959]
[1609998049791,4.00959,1208.5,1204.0,66.023]
[1609998050795,4.00959,1208.3,1208.1,4.00959]
[1609998054400,4.00959,1208.3,1204.0,66.023]
[1609998054600,4.00959,1208.3,1204.0,30.0]
[1609998054801,4.00959,1207.7,1207.6,4.00959]
[1609998059108,4.00959,1207.7,1204.0,30.0]
[1609998060910,2.5589,1209.7,1204.0,30.0]
[1609998062813,4.00959,1206.9,1206.8,4.00959]
[1609998063312,4.00959,1206.9,1204.0,30.0]
[1609998064917,2.6832,1208.9,1206.5,4.00959]
[1609998065116,2.6832,1208.9,1206.5,6.70269]
[1609998066318,2.6832,1208.9,1206.5,2.6931]
[1609998066819,4.00959,1206.6,1206.5,2.6931]
[1609998070123,4.00959,1206.6,1204.0,30.0]
[1609998070824,2.4996,1208.3,1206.0,4.00959]
[1609998071221,2.4996,1208.3,1206.0,6.09539]
[1609998071620,2.4996,1208.3,1206.0,2.0858]
[1609998072030,2.6572,1208.6,1206.0,2.0858]
[1609998072827,4.00959,1206.1,1206.0,2.0858]
[1609998076329,4.00959,1206.1,1205.3,4.00959]
[1609998076830,4.00959,1205.7,1205.5,4.00959]
[1609998077429,4.00959,1205.7,1203.9,36.1174]
[1609998077931,69.1622,1206.2,1203.9,36.1174]
[1609998078131,69.1622,1206.2,1203.9,38.0493]
[1609998078832,4.00959,1206.0,1205.8,4.00959]
[1609998079131,4.00959,1206.0,1203.9,8.0493]
[1609998079833,4.00959,1206.0,1203.9,38.0493]
[1609998080235,64.99169,1206.0,1203.9,38.0493]
[1609998080936,4.00959,1205.6,1203.9,38.0493]
[1609998082339,4.00959,1205.6,1203.9,8.0493]
[1609998082841,4.00959,1205.6,1205.4,4.00959]
[1609998083042,4.00959,1205.6,1203.9,1.9319]
[1609998083240,4.00959,1205.6,1202.3,30.0]
[1609998084946,4.00959,1204.9,1204.8,4.00959]
[1609998085144,4.00959,1204.9,1202.3,30.0]
[1609998086852,2.9399,1205.7,1203.8,4.00959]
[1609998087052,2.9399,1205.7,1203.8,2.3746]
[1609998088347,2.9399,1205.7,1201.3,12.1446]
[1609998088847,4.00959,1203.1,1202.8,4.00959]
[1609998089248,2.7313,1204.4,1202.8,4.00959]
[1609998090052,7.4159,1204.9,1202.8,4.00959]
[1609998090352,2.9399,1205.7,1202.8,5.99929]
[1609998091051,4.00959,1204.2,1202.8,1.9897]
[1609998092953,4.00959,1204.0,1203.9,4.00959]
[1609998093354,4.00959,1204.0,1202.8,1.9897]
[1609998094956,66.5629,1204.8,1203.5,4.00959]
[1609998095156,66.5629,1204.8,1203.5,6.65689]
[1609998097056,4.00959,1204.3,1203.5,2.6473]
[1609998099060,4.00959,1204.0,1203.7,4.00959]
[1609998099258,66.5629,1204.8,1203.7,4.00959]
[1609998099458,2.0854,1205.4,1203.7,4.00959]
[1609998101160,4.00959,1204.1,1203.9,4.00959]
[1609998101763,2.0854,1205.4,1203.9,4.00959]
[1609998102461,57.9891,1205.7,1203.9,4.00959]
[1609998102667,55.6519,1205.7,1203.9,4.00959]
[1609998103064,55.6519,1205.7,1204.7,4.00959]
[1609998104166,69.2875,1206.4,1204.7,4.00959]
[1609998105066,4.00959,1205.0,1204.7,4.00959]
[1609998105665,4.00959,1205.0,1203.5,2.6473]
[1609998105868,4.00959,1205.0,1202.8,1.9897]
[1609998106068,4.00959,1205.0,1201.5,30.0]
[1609998106968,4.00959,1205.0,1204.8,4.00959]
[1609998107174,4.00959,1205.0,1204.8,6.78949]
[1609998109372,5.66959,1205.0,1204.8,6.78949]
[1609998109671,4.00959,1205.0,1204.8,6.78949]
[1609998114081,2.3518,1206.6,1204.8,6.78949]
[1609998114277,7.377,1207.4,1204.8,6.78949]
[1609998114978,7.377,1207.4,1205.2,4.00959]
[1609998115378,52.043,1210.8,1205.2,4.00959]
[1609998115578,88.066,1210.8,1205.2,4.00959]
[1609998116981,88.066,1210.8,1205.7,4.00959]
[1609998118481,88.066,1210.8,1204.8,2.7799]
[1609998118681,90.5359,1210.8,1201.5,30.0]
[1609998118981,4.00959,1205.3,1205.0,4.00959]
[1609998120984,4.00959,1205.3,1205.2,4.00959]
[1609998121184,2.9236,1206.6,1205.2,6.52739]
[1609998121585,90.5359,1210.8,1205.2,6.52739]
[1609998122890,66.0008,1208.9,1205.2,6.52739]
[1609998123088,68.8454,1208.9,1205.6,4.00959]
[1609998123290,90.8884,1208.9,1205.6,4.00959]
[1609998123490,90.8884,1208.9,1205.2,2.5178]
[1609998123690,120.8884,1208.9,1205.2,2.5178]
[1609998124992,4.00959,1205.3,1205.2,6.52739]
[1609998125696,2.1343,1206.7,1205.2,2.5178]
[1609998126294,2.1343,1206.7,1201.5,30.0]
[1609998126497,2.1343,1206.7,1205.2,2.0979]
[1609998126995,4.00959,1205.3,1205.2,2.0979]
[1609998128810,4.00959,1205.3,1201.5,30.0]
[1609998129095,4.00959,1204.3,1204.0,4.00959]
[1609998130407,4.00959,1204.3,1201.5,30.0]
[1609998131196,4.00959,1203.8,1203.5,4.00959]
[1609998132698,4.00959,1203.8,1201.4,35.8355]
[1609998133099,4.00959,1203.2,1202.9,4.00959]
[1609998133998,2.7713,1204.7,1202.9,4.00959]
[1609998134198,2.7713,1204.7,1202.9,5.97189]
[1609998135200,4.00959,1203.0,1202.9,5.97189]
[1609998135599,2.7713,1204.7,1202.9,5.97189]
[1609998137206,2.0485,1205.0,1203.3,4.00959]
[1609998137406,46.7648,1205.2,1203.3,4.00959]
[1609998139308,4.00959,1204.1,1202.9,1.9623]
[1609998139507,4.00959,1204.1,1201.4,35.8355]
[1609998141209,2.4827,1205.1,1203.6,4.00959]
[1609998141709,2.4827,1205.1,1201.4,35.8355]
[1609998143111,2.4827,1205.1,1203.4,4.00959]
[1609998143409,2.4827,1205.1,1201.4,35.8355]
[1609998144710,2.4827,1205.1,1201.4,5.8355]
[1609998145111,4.00959,1203.1,1203.0,4.00959]
[1609998145712,3.0097,1204.4,1203.0,4.00959]
[1609998147112,4.00959,1203.1,1203.0,4.00959]
[1609998149015,4.00959,1203.1,1201.4,5.8355]
[1609998149214,3.0097,1204.4,1202.6,4.00959]
[1609998149415,3.0097,1204.4,1201.0,5.0]
[1609998149814,33.0097,1204.4,1201.0,5.0]
[1609998150714,3.0097,1204.4,1201.0,5.0]
[1609998151014,59.7039,1203.6,1201.0,5.0]
[1609998151314,4.00959,1201.8,1201.0,5.0]
[1609998153120,4.00959,1202.0,1201.5,4.00959]
[1609998153418,4.00959,1202.0,1201.5,6.13119]
[1609998154220,4.00959,1202.0,1201.5,2.1216]
[1609998154435,4.00959,1202.0,1201.0,5.0]
[1609998155122,4.00959,1201.4,1201.1,4.00959]
[1609998156420,2.4648,1202.4,1201.1,4.00959]
[1609998156736,2.4648,1202.4,1201.0,5.0]
[1609998157122,4.00959,1201.1,1201.0,5.0]
[1609998160626,56.7284,1202.3,1201.0,5.0]
[1609998161328,4.00959,1201.3,1201.0,9.00959]
[1609998161628,4.00959,1201.3,1201.0,5.0]
[1609998162328,56.7284,1202.3,1201.0,5.0]
[1609998163329,56.7284,1202.3,1201.3,4.00959]
[1609998165332,4.00959,1201.9,1201.0,5.0]
[1609998167335,4.00959,1201.4,1201.3,4.00959]
[1609998168137,4.00959,1201.4,1201.0,5.0]
[1609998169237,4.00959,1201.1,1201.0,5.0]
[1609998169436,56.7284,1202.3,1201.0,5.0]
[1609998169741,50.3052,1202.5,1201.0,5.0]
[1609998171256,4.00959,1201.8,1201.0,5.0]
[1609998171841,50.3052,1202.5,1201.0,5.0]
[1609998173243,4.00959,1201.6,1201.4,4.00959]
[1609998173744,50.3052,1202.5,1201.4,4.00959]
[1609998175246,50.3052,1202.5,1202.0,4.00959]
[1609998176445,50.3052,1202.5,1202.0,5.98459]
[1609998177346,4.00959,1202.4,1202.3,4.00959]
[1609998177549,4.00959,1202.4,1202.0,1.975]
[1609998179248,4.00959,1202.4,1202.0,5.98459]
[1609998181250,4.00959,1202.2,1202.0,5.98459]
[1609998181648,55.8794,1203.5,1202.0,5.98459]
[1609998183252,55.8794,1203.5,1202.6,4.00959]
[1609998183464,55.8794,1203.5,1202.0,1.975]
[1609998183657,55.8794,1203.5,1201.0,5.0]
[1609998183851,59.5534,1203.5,1201.0,5.0]
[1609998185253,4.00959,1202.1,1201.8,4.00959]
[1609998186456,4.00959,1202.1,1201.0,5.0]
[1609998187255,4.00959,1201.5,1201.3,4.00959]
[1609998187755,4.00959,1201.5,1201.0,5.0]
[1609998189257,4.00959,1201.5,1201.2,4.00959]
[1609998191459,4.00959,1201.5,1201.0,5.0]
[1609998193262,4.00959,1201.3,1201.0,5.0]
[1609998194161,2.5043,1202.9,1201.0,5.0]
[1609998195264,4.00959,1201.7,1201.3,4.00959]
[1609998195465,2.5043,1202.9,1201.3,4.00959]
[1609998195667,2.8931,1203.2,1201.3,4.00959]
[1609998195866,3.674,1203.5,1201.3,4.00959]
[1609998197368,4.00959,1201.9,1201.3,4.00959]
[1609998197667,4.00959,1201.9,1201.0,5.0]
[1609998199371,4.00959,1201.7,1201.0,5.0]
[1609998201373,4.00959,1201.5,1201.0,5.0]
[1609998203276,4.00959,1201.3,1201.0,5.0]
[1609998205378,4.00959,1201.1,1201.0,5.0]
[1609998207882,64.5511,1201.6,1201.0,5.0]
[1609998211385,4.00959,1201.1,1201.0,5.0]
[1609998235423,3.0277,1201.8,1201.0,5.0]
[1609998235622,4.00959,1201.3,1201.0,5.0]
[1609998236819,55.2685,1201.9,1201.0,5.0]
[1609998237720,4.00959,1201.6,1201.4,4.00959]
[1609998238021,55.2685,1201.9,1201.0,5.0]
[1609998238220,2.1176,1202.8,1201.0,5.0]
[1609998239523,4.00959,1201.1,1201.0,5.0]
[1609998240423,2.2267,1202.5,1201.0,5.0]
[1609998240624,2.2267,1202.5,1201.0,6.9567]
[1609998241126,2.1176,1202.8,1201.0,6.9567]
[1609998241327,33.674,1203.5,1201.0,6.9567]
[1609998241530,4.00959,1201.8,1201.3,4.00959]
[1609998242631,2.6001,1203.1,1201.3,4.00959]
[1609998243532,4.00959,1201.9,1201.3,4.00959]
[1609998245035,4.00959,1201.9,1201.0,6.9567]
[1609998245535,4.00959,1201.2,1201.0,6.9567]
[1609998249643,4.00959,1201.2,1201.0,10.96629]
[1609998250043,2.0982,1202.5,1201.0,10.96629]
[1609998250942,2.6001,1203.1,1201.0,10.96629]
[1609998251142,30.0,1204.1,1201.0,10.96629]
[1609998251544,4.00959,1201.7,1201.5,4.00959]
[1609998252044,4.00959,1201.7,1201.0,6.9567]
[1609998253545,4.00959,1201.5,1201.0,6.9567]
[1609998255545,4.00959,1201.1,1201.0,6.9567]
[1609998259150,3.1167,1201.8,1201.0,6.9567]
[1609998259550,4.00959,1201.3,1201.0,6.9567]
[1609998261752,2.6294,1202.4,1201.0,6.9567]
[1609998261954,2.6565,1203.1,1201.0,6.9567]
[1609998262353,30.0,1203.4,1201.0,6.9567]
[1609998263253,3.674,1203.5,1201.0,6.9567]
[1609998263656,4.00959,1201.7,1201.4,4.00959]
[1609998264555,4.00959,1201.7,1201.0,6.9567]
[1609998265556,4.00959,1201.4,1201.1,4.00959]
[1609998267558,4.00959,1201.2,1201.1,4.00959]
[1609998267858,4.00959,1201.2,1201.0,6.9567]
[1609998269159,4.00959,1201.2,1201.0,5.0]
[1609998279476,7.4454,1201.1,1201.0,5.0]
[1609998282680,9.4668,1201.1,1201.0,5.0]
[1609998287689,7.4454,1201.1,1201.0,5.0]
[1609998291990,4.00959,1201.2,1201.0,5.0]
[1609998314115,34.00959,1201.2,1201.0,5.0]
[1609998327027,4.00959,1201.2,1201.0,5.0]
[1609998327827,34.00959,1201.2,1201.0,5.0]
[1609998328931,4.00959,1201.2,1201.0,5.0]
[1609998339636,9.8454,1201.1,1201.0,5.0]
[1609998340634,12.0019,1201.1,1201.0,5.0]
[1609998342835,9.8454,1201.1,1201.0,5.0]
[1609998343737,2.7391,1201.7,1201.0,5.0]
[1609998343937,4.00959,1201.1,1201.0,5.0]
[1609998345039,2.441,1201.9,1201.0,5.0]
[1609998345242,65.1572,1202.0,1201.0,5.0]
[1609998346043,4.00959,1201.5,1201.4,4.00959]
[1609998346244,58.5022,1202.5,1201.4,4.00959]
[1609998346445,2.3046,1202.9,1201.4,4.00959]
[1609998347548,3.674,1203.5,1201.4,4.00959]
[1609998347949,4.00959,1202.2,1202.0,4.00959]
[1609998349950,2.5177,1203.4,1202.0,4.00959]
[1609998351955,4.00959,1202.4,1202.2,4.00959]
[1609998352255,2.5177,1203.4,1202.2,4.00959]
[1609998353157,55.9497,1204.0,1202.2,4.00959]
[1609998353957,55.9497,1204.0,1202.8,4.00959]
[1609998354257,55.9497,1204.0,1201.5,58.4322]
[1609998354457,58.5404,1204.0,1201.5,58.4322]
[1609998355959,4.00959,1202.8,1202.6,4.00959]
[1609998356161,4.00959,1202.8,1201.5,58.4322]
[1609998357663,4.00959,1202.8,1201.0,5.0]
[1609998357963,3.1598,1203.4,1202.4,4.00959]
[1609998358164,3.1598,1203.4,1201.0,5.0]
[1609998360065,3.1598,1203.4,1202.2,4.00959]
[1609998360566,3.1598,1203.4,1201.0,5.0]
[1609998361971,4.00959,1202.5,1202.2,4.00959]
[1609998363972,4.00959,1202.3,1202.2,4.00959]
[1609998364473,4.00959,1202.3,1201.0,5.0]
[1609998365674,2.0217,1203.1,1201.0,5.0]
[1609998366075,2.0217,1203.1,1202.6,4.00959]
[1609998366376,3.1598,1203.4,1201.0,5.0]
[1609998366775,2.4391,1203.7,1201.0,5.0]
[1609998367177,35.7751,1203.9,1201.0,5.0]
[1609998367378,3.674,1203.7,1201.0,5.0]
[1609998367578,6.3796,1203.7,1201.0,5.0]
[1609998367781,2.7056,1203.7,1201.0,5.0]
[1609998367980,4.00959,1203.2,1203.0,4.00959]
[1609998368180,2.7056,1203.7,1203.0,4.00959]
[1609998368481,71.5225,1204.0,1203.0,4.00959]
[1609998369483,2.5907,1204.0,1203.0,4.00959]
[1609998369681,6.0527,1204.6,1203.0,4.00959]
[1609998370081,4.00959,1203.9,1203.7,4.00959]
[1609998372386,4.00959,1203.9,1202.8,65.7558]
[1609998374088,4.00959,1203.9,1203.7,4.00959]
[1609998382099,62.2667,1205.0,1203.7,4.00959]
[1609998382100,4.00959,1204.1,1203.7,4.00959]
[1609998384100,4.00959,1204.1,1203.9,4.00959]
[1609998384603,4.00959,1204.1,1203.3,65.3646]
[1609998385806,4.00959,1204.1,1203.4,69.2965]
[1609998386206,4.00959,1203.5,1203.4,69.2965]
[1609998388211,4.00959,1203.5,1203.4,73.30609]
[1609998388511,3.1399,1204.6,1203.4,73.30609]
[1609998389112,2.0394,1204.9,1203.4,73.30609]
[1609998389812,47.6835,1205.1,1203.4,73.30609]
[1609998390314,4.00959,1204.1,1203.9,4.00959]
[1609998391516,4.00959,1204.1,1203.4,69.2965]
[1609998392215,4.00959,1203.7,1203.6,4.00959]
[1609998393616,2.9297,1205.0,1203.6,4.00959]
[1609998394318,4.00959,1203.7,1203.6,4.00959]
[1609998394719,2.9297,1205.0,1203.6,4.00959]
[1609998395517,3.674,1206.0,1203.6,4.00959]
[1609998396217,3.674,1206.0,1204.1,4.00959]
[1609998396419,3.674,1206.0,1201.6,6.1718]
[1609998396621,5.6311,1206.0,1201.6,6.1718]
[1609998396820,35.6311,1206.0,1201.6,6.1718]
[1609998398423,4.00959,1203.7,1203.4,4.00959]
[1609998400224,4.00959,1203.7,1203.6,4.00959]
[1609998400425,4.00959,1203.7,1201.6,6.1718]
[1609998402328,4.00959,1203.7,1203.6,4.00959]
[1609998402927,2.8352,1204.9,1203.6,4.00959]
[1609998404333,2.8352,1204.9,1204.3,4.00959]
[1609998404534,5.6311,1206.0,1204.3,4.00959]
[1609998406333,4.00959,1204.4,1204.3,4.00959]
[1609998406934,4.00959,1204.4,1201.7,30.0]
[1609998407138,4.00959,1204.4,1201.6,6.1718]
[1609998408037,4.00959,1204.4,1201.7,30.0]
[1609998408538,4.00959,1204.4,1204.2,4.00959]
[1609998409138,4.00959,1204.4,1201.6,36.1718]
[1609998410142,4.00959,1204.4,1202.7,63.278]
[1609998410339,4.00959,1204.4,1204.2,4.00959]
[1609998411256,4.00959,1204.4,1202.7,63.278]